Cogmind - Beta 9.6 @@@ ROGUE MODE // 2020.08.19 @ 22:54:41 Player: Rusllan Result: Destroyed by S-10 Pest with Light Assault Rifle Performance ------------- Evolutions (0) 0 Regions Visited (1) 200 Robots Destroyed (21) 105 Value Destroyed (537) 537 Prototype IDs (3) 60 Alien Tech Used (0) 0 Bonus (0) 0 TOTAL SCORE: 902 Bonus ------- None Cogmind --------- Core Integrity 0/250 Matter 139/300 Energy 265/265 System Corruption 0% Temperature Cool (0) Movement Rolling (100) Ox1 Location -10/Materials Parts ------- > --- POWER (1) -------- Improved Ion Engine > --- PROPULSION (2) --- Armored Wheel Armored Wheel > --- UTILITY (2) ------ Heat Sink High-capacity Storage Unit > --- WEAPON (2) ------- Assault Rifle Light Assault Rifle > --- INVENTORY (12) --- Improved Ion Engine Improved Ion Engine Improved Ion Engine Armored Wheel Armored Wheel Medium Matter Pod (0) High-capacity Matter Pod (0) Sensor Array Targeting Computer Light Assault Rifle Light Assault Rifle Peak State ------------ > --- POWER ------------ Improved Ion Engine > --- PROPULSION ------- Armored Wheel Armored Wheel > --- UTILITY ---------- Heat Sink High-capacity Storage Unit > --- WEAPON ----------- Assault Rifle Light Assault Rifle > --- INVENTORY -------- Improved Ion Engine Improved Ion Engine Improved Ion Engine Medium Matter Pod High-capacity Matter Pod Sensor Array Targeting Computer Light Assault Rifle Light Assault Rifle [Rating: 11] Favorites ----------- Power Ion Engine Engine Ion Engine Propulsion Light Treads Treads Light Treads Leg Aluminum Leg Wheel Armored Wheel Utility Heat Sink Device Heat Sink Storage High-capacity Storage Unit Weapon Light Cannon Ballistic Gun Assault Rifle Ballistic Cannon Light Cannon Launcher Grenade Launcher Build | -11 -10 ------- Run | Scr Mat Slots Evolved . | . . Power . | . . Propulsion . | . . Utility . | . . Weapon . | . . Parts Attached 25 | 6 19 Power 3 | 1 2 Engine 3 | 1 2 Core . | . . Reactor . | . . Propulsion 7 | 2 5 Treads 4 | 2 2 Leg 1 | . 1 Wheel 2 | . 2 Hover . | . . Flight . | . . Utility 5 | 1 4 Device 3 | . 3 Storage 2 | 1 1 Processor . | . . Hackware . | . . Protection . | . . Artifact . | . . Weapon 10 | 2 8 Energy Gun . | . . Energy Cannon . | . . Ballistic Gun 5 | 2 3 Ballistic Cannon 3 | . 3 Launcher 2 | . 2 Special Weapon . | . . Impact Weapon . | . . Slashing Weapon . | . . Piercing Weapon . | . . Special Melee Weapon . | . . Unidentified Prototypes . | . . Parts Lost 7 | . 7 Power 1 | . 1 Propulsion 2 | . 2 Utility 1 | . 1 Weapon 3 | . 3 Highest Loss Streak 6 | . 6 Average Slot Usage (%) 93 | . 93 Engine 13 | . 13 Treads 22 | . 22 Wheel 1 | . 1 Device 13 | . 13 Storage 14 | . 14 Ballistic Gun 5 | . 5 Ballistic Cannon 10 | . 10 Launcher 10 | . 10 Naked Turns . | . . Heaviest Build 44 | 12 44 Greatest Support 40 | 40 40 Greatest Overweight (x) 12 | . 12 Average Overweight (x) . | . 1 Largest Inventory Capacity 12 | 6 12 Average Capacity 10 | 5 11 Most Carried 11 | 4 11 Average Carried 4 | 1 4 Final Capacity 12 | 6 12 Final Carried 11 | 1 11 Class Distribution -------------------- 100% | Mutant Dominant Class ---------------- Mutant | -10/Materials Resources | -11 -10 ----------- Run | Scr Mat Matter Collected 739 | 214 525 Remotely . | . . Salvage Created 437 | . 437 Parts 28 | . 28 Haulers Intercepted . | . . Recyclers Shooed 2 | . 2 Parts Field Recycled . | . . Retrieved Matter . | . . Parts Self-Destructed . | . . Prevented . | . . Kills | -11 -10 ------- Run | Scr Mat Combat Hostiles Destroyed 15 | . 15 Guns 3 | . 3 Cannons 9 | . 9 AOE 3 | . 3 Classes Destroyed 5 | . 5 Worker 2 | . 2 Recycler 1 | . 1 Watcher 3 | . 3 Swarmer 3 | . 3 Grunt 12 | . 12 Best Kill Streak 5 | . 5 Combat Bots Only 4 | . 4 Max Kills in Single Turn 2 | . 2 Gunslinging . | . . Exploded 2 | . 2 Melee . | . . Uniques/NPCs Destroyed . | . . Combat | -11 -10 -------- Run | Scr Mat Damage Taken 1050 | . 1050 Core 254 | . 254 Absorbed by Shields . | . . Core Remaining (%) 100 | 100 . Volleys Fired 87 | 1 86 Largest 2 | 2 2 Hottest 70 | 40 70 Shots Fired 128 | 2 126 Gun 20 | 2 18 Cannon 96 | . 96 Launcher 12 | . 12 Special . | . . Kinetic 116 | 2 114 Thermal . | . . Explosive 12 | . 12 Electromagnetic . | . . Robot Hit Streak 7 | 1 7 Robot Miss Streak 4 | 1 4 Penetration Max . | . . Secondary Targets . | . . Shots Hit Robots 76 | 1 75 Core Hits 31 | . 31 Critical Hits 1 | . 1 Critical Kills 1 | . 1 Critical Parts Destroyed . | . . Melee Attacks . | . . Impact . | . . Slashing . | . . Piercing . | . . Sneak Attacks . | . . Combat Hostiles . | . . Follow-up Attacks . | . . Damage Inflicted 1475 | 11 1464 Guns 132 | 11 121 Cannons 831 | . 831 Explosions 506 | . 506 Melee . | . . Ramming 6 | . 6 Kinetic 963 | 11 952 Thermal . | . . Explosive 506 | . 506 Electromagnetic . | . . Impact . | . . Slashing . | . . Piercing . | . . Highest Corruption . | . . Average Corruption . | . . Corruption Purged . | . . Overload Shots . | . . Overflow Damage 47 | . 47 Projectiles . | . . Explosions 47 | . 47 Melee . | . . Knockbacks 15 | . 15 Impact . | . . Kinetic 15 | . 15 Secondary . | . . Self-Inflicted Damage 6 | . 6 Shots 1 | . 1 Rammed 1 | . 1 Targets Rammed 1 | . 1 Kicked . | . . Crushed . | . . Highest Temperature 23 | . 23 Average Temperature 11 | . 11 Received Heat Transfer 375 | . 375 Siege Activations . | . . Robots Corrupted . | . . Combat Hostiles . | . . Parts Fried . | . . Impact Corruptions . | . . Robots Melted . | . . Combat Hostiles . | . . Parts Melted . | . . Heat Transferred . | . . Parts Sabotaged . | . . Parts Stolen . | . . Parts Stripped . | . . Power Chain Reactions . | . . Missiles Intercepted . | . . Alert | -11 -10 ------- Run | Scr Mat Peak Influence 197 | . 197 Average Influence 91 | . 95 Maximum Alert Level . | . . Low Security (%) 100 | 100 100 Level 1 . | . . Level 2 . | . . Level 3 . | . . Level 4 . | . . Level 5 . | . . High Security . | . . Max Security . | . . Squads Dispatched 6 | . 6 Investigation 2 | . 2 Extermination . | . . Reinforcement 4 | . 4 Assault . | . . Garrison . | . . Intercept . | . . Construction Impeded . | . . Haulers Reinforced . | . . Stealth | -11 -10 --------- Run | Scr Mat Distress Signals 1 | . 1 Communications Jammed . | . . Distress Signals . | . . Times Spotted 29 | . 29 Peak Tracking Total 4 | . 4 Tactical Retreats 1 | . 1 Traps | -11 -10 ------- Run | Scr Mat Traps Triggered 3 | . 3 Indirectly . | . . Trap Hack Attempts . | . . Triggered . | . . Disarmed . | . . Reprogrammed . | . . Reused . | . . Traps Extracted . | . . Installed . | . . Triggered . | . . Machines | -11 -10 ---------- Run | Scr Mat Machines Disabled 3 | . 3 Max in Single Turn 2 | . 2 Machines Sabotaged . | . . Garrisons Compromised . | . . Overloaded Fab Kills . | . . Fab Network Shutdowns . | . . Hacking | -11 -10 --------- Run | Scr Mat Machines Accessed 4 | . 4 Terminals 2 | . 2 Fabricators . | . . Repair Stations . | . . Recycling Units 2 | . 2 Scanalyzers . | . . Garrison Access . | . . Total Hacks 18 | . 18 Successful 16 | . 16 Failed 2 | . 2 Catastrophic . | . . Database Lockouts . | . . Manual . | . . Terminals 7 | . 7 Fabricators . | . . Repair Stations . | . . Recycling Units 11 | . 11 Scanalyzers . | . . Garrison Access . | . . Terminal Hacks 5 | . 5 Record 4 | . 4 Prototype ID Bank 1 | . 1 Fabricator Hacks . | . . Repair Station Hacks . | . . Recycling Unit Hacks 11 | . 11 Recycle Component 4 | . 4 Process 2 | . 2 Report Inventory 2 | . 2 Retrieve Matter 2 | . 2 Retrieve Components 1 | . 1 Scanalyzer . | . . Garrison Access Hacks . | . . Unauthorized Hacks . | . . Terminals . | . . Fabricators . | . . Repair Stations . | . . Recycling Units . | . . Scanalyzers . | . . Garrison Access . | . . Data Cores Recovered . | . . Used . | . . Hacking Detections 3 | . 3 Full Trace Events 3 | . 3 Feedback Events . | . . Feedback Blocked . | . . Robot Schematics Acquired . | . . Robots Built . | . . Matter . | . . Time . | . . Total Robot Build Rating . | . . Part Schematics Acquired . | . . Parts Built . | . . Matter . | . . Time . | . . Total Part Build Rating . | . . Parts Repaired . | . . Time . | . . Parts Recycled 4 | . 4 Recycled Matter 142 | . 142 Retrieved Matter 65 | . 65 Retrieved Components 3 | . 3 Parts Scanalyzed . | . . Part Schematics Acquired . | . . Parts Damaged . | . . Bothacking | -11 -10 ------------ Run | Scr Mat Used RIF Installer . | . . Robots Hacked . | . . Non-combat . | . . Combat . | . . Robot Hacks Applied . | . . Relay Couplers Released . | . . Robots Rewired . | . . Allies Hacked . | . . Hacks Repelled . | . . Allies | -11 -10 -------- Run | Scr Mat Total Allies . | . . Largest Group . | . . Highest-Rated Group . | . . Highest-Rated Ally . | . . Total Orders . | . . Ally Attacks . | . . Total Damage . | . . Kills . | . . Allies Corrupted . | . . Allies Melted . | . . Intel | -11 -10 ------- Run | Scr Mat Robot Analysis Total . | . . Derelict Logs Recovered . | . . Drone Launches . | . . Drone Recoveries . | . . Exploration | -11 -10 ------------- Run | Scr Mat Turns Passed 1197 | 54 1143 Spaces Moved 533 | 34 499 Core 18 | 14 4 Treads 452 | 20 432 Legs 20 | . 20 Wheels 43 | . 43 Hover . | . . Flight . | . . Fastest Speed 50 | 50 100 Average Speed 171 | 114 175 Slowest Speed 650 | 160 650 Overloaded Moves . | . . Propulsion Burnouts . | . . Robots Hopped . | . . Cave-ins Triggered . | . . Exploration Rate (%) 38 | 4 73 Regions Visited 1 Branch Regions . Pre-discovered Areas . | . . Known Exits Taken . | . . Unknown Exits Taken 1 | 1 . Scrap Searched . | . . Spaces Dug . | . . Terrain Destroyed 55 | . 55 Melee . | . . Projectile . | . . AOE 55 | . 55 Actions | -11 -10 --------- Run | Scr Mat Total 688 | 47 641 Wait 2 | . 2 Move 532 | 33 499 Hop . | . . Pick Up 37 | 7 30 Fast Attach . | . . Attach 19 | 6 13 Detach . | . . Swap 6 | . 6 Drop 4 | . 4 Fire 87 | 1 86 Melee . | . . Ram . | . . Kick . | . . Crush 1 | . 1 Escape Stasis . | . . Rewire . | . . Trap . | . . Miscellaneous . | . . Route ------- -11/Scrapyard -10/Materials (discovered 3 exits: [*Mat x3]) History --------- Turn | Location | Event 33 | -11/Scrapyard | Discovered new exit (range 13) 55 | -11/Scrapyard | Entered Materials 304 | -10/Materials | Build established: Mutant 448 | -10/Materials | Discovered new exit (range 9) 607 | -10/Materials | Discovered new exit (range 3) 1011 | -10/Materials | Core integrity fell below 50% 1055 | -10/Materials | Core integrity fell below 20% 1078 | -10/Materials | Lost 6 parts (1p2n1u2w) 1094 | -10/Materials | Discovered new exit (range 5) 1198 | -10/Materials | Destroyed by S-10 Pest with Light Assault Rifle Last Messages --------------- K-01 Serf collects debris. Acquired 45 matter. K-01 Serf collects debris. Acquired 32 matter. K-01 Serf collects debris. Acquired Lgt. Assault Rifle. K-01 Serf collects debris. Acquired Hcp. Matter Pod. K-01 Serf collects debris. Acquired Lgt. Assault Rifle. Acquired 24 matter. Acquired Imp. Ion Engine. Dropped Ion Engine. Acquired Imp. Ion Engine. Dropped Aluminum Leg. Acquired Arm. Wheel. K-01 Serf cleans the Terminal. Acquired Arm. Wheel. K-01 Serf cleans the Terminal. K-01 Serf cleans the Atomic Centrifuge. Map ----- +----------------------------------------------------+ | | """ #??????? #?????????????????????# """ | | """ #???????? #???????????? ??????# """ | | = """ #????????? ???????????# ??????# | | """ #????????? ??????????# #??????######## | | #?????????? ??????????# #?????????????? | | ##########??????????? ?????????# #?????????????? | | ???????????????????????????????# #?????????????? | | ?????????????????????????????### #############?? | | ?????????????????????????????# ^^ # #?? | | ????????????????????????????## ^ # #?? | | ???????????????????????????? ^ # #?? | | ??????????????????????????????# "" + """ #?? | | ??????????????????????????????# ^ "" # """ #?? | | ?????????????????????########## ^T" # """ #?# | | ?????????????????????# ## "" ########## | | ?????????????????????# # "" | | ?????????????????????+ !!! + = | | ?????????????????????# [! # [ * | | ?????????????????????#! [! # # * ########## | | ?????????????????????# # # = #????????? | | ?????????????????????# """ # < #!! #????????? | | ?????????????????????# """ # #!!* #######??? | | ?????????????????????# """k############# #### | | ?????????????????????# #???????????# | | ?????????????????????# s #???????????# | | ????????????????##+######@####???????????# #### | | ????????? s #??????????######+###### | | ????????? s #??????????# | | ????????????###############??????????# """ """ | | ?????????????????????????????????????# """ """ | | ?????????????????????????????????????# """ """ | | ?????????????????????????????????????# | | ?????????????????????????????????????############# | | | | | | | | | | | | | | | | | | | | | | | | | | | | | | | | | | | +----------------------------------------------------+ Best States ------------- Heat Dissipation 35 Energy Generation 12 Energy Capacity 265 Matter Stores 276 Matter Capacity 300 Sight Range 16 Terrain Scan Density 10 Evasion (%) 50 Recoil Reduction 2 Item Schematics ----------------- None Robot Schematics ------------------ None Fabricated ------------ Nothing Alien Tech Used ----------------- None Achievements -------------- None Challenges ------------ None Game ------ Seed NeutronFlyingManipulator Manual? 0 Play Time 00:18:01 Cumulative 7.5 hours Start 2020.08.19 @ 22:34:33 End 2020.08.19 @ 22:54:41 Sessions 1 Manual Loads 0 Difficulty Rogue Special Mode None Game No. 11 Rogue 11 Adventurer 0 Explorer 0 Win Type - Total 0 Types 0/0/0/0/0/0/0 Lore% 4 Gallery% 10 Achievement% 12 Wizard Run 0 Options --------- ASCII 0 Keyboard 0 Movement Mouse Keybinds 0 Fullscreen 1 Font 18/SmallcapsGlow Map View 76x50 Tactical HUD 0 Map Filters NONE Filters NONE Steam 1 RUN: fbeea30f-3a5c-4783-ad45-6182472e4269